[Event "26th Hit Open-A 2022"]
[Site "Nova Gorica"]
[Date "2022.09.15"]
[Round "1.46"]
[White "Juvan, Vid"]
[Black "Pirs, Matjaz"]
[Result "0-1"]
[ECO "B01"]
[WhiteElo "1564"]
[BlackElo "2203"]
[Annotator "ChessBase"]
[PlyCount "70"]
[EventDate "2022.09.16"]
[EventType "swiss"]
[EventCountry "SLO"]
[SourceTitle "playchess.com"]
[Source "ChessBase"]
[SourceQuality "1"]
[TimeControl "5400+30"]

1. e4 {[%emt 0:00:04]} d5 {[%emt 0:00:35]} 2. exd5 {[%emt 0:00:09]} Nf6 {[%emt 0:00:07]} 3. d4 {[%emt 0:00:17]} Nxd5 {[%emt 0:00:08]} 4. Nf3 {[%emt 0:00:31]} Nb6 {[%emt 0:14:40]} 5. Be2 {[%emt 0:03:27]} Bf5 {[%emt 0:00:20]} 6. c4 {[%emt 0:02:00]} e6 {[%emt 0:00:55]} 7. O-O {[%emt 0:00:32]} Be7 {[%emt 0:00:46]} 8. Nc3 {[%emt 0:01:39]} O-O {[%emt 0:00:18]} 9. Bf4 {[%emt 0:03:33]} Bd6 {[%emt 0:17:41]} 10. Bg5 {[%emt 0:02:18]} Be7 {[%emt 0:00:08]} 11. Bf4 {[%emt 0:00:22]} Nc6 {[%emt 0:07:44]} 12. Qb3 {[%emt 0:08:21]} g5 {[%emt 0:04:26]} 13. Bg3 {[%emt 0:05:35]} g4 {[%emt 0:01:25]} 14. Ne5 {[%emt 0:04:34]} Nxd4 {[%emt 0:08:19]} 15. Qd1 {[%emt 0:00:20]} h5 {[%emt 0:22:01]} 16. Bxg4 {[%emt 0:06:20]} hxg4 {[%emt 0:01:09]} 17. Nxg4 {[%emt 0:00:16]} Bg6 {[%emt 0:07:28]} 18. Ne5 {[%emt 0:04:48]} Nf5 {[%emt 0:03:19]} 19. Nxg6 {[%emt 0:01:47]} fxg6 {[%emt 0:00:05]} 20. Qg4 {[%emt 0:00:18]} Kf7 {[%emt 0:00:40]} 21. Be5 {[%emt 0:02:06]} Bd6 {[%emt 0:01:28]} 22. Rad1 {[%emt 0:00:49]} Qe7 {[%emt 0:01:21]} 23. Bd4 {[%emt 0:00:58]} c5 {[%emt 0:00:33]} 24. Be3 {[%emt 0:01:25]} Rh8 {[%emt 0:00:27]} 25. h3 {[%emt 0:00:54]} Qh4 {[%emt 0:02:35]} 26. Qf3 {[%emt 0:01:29]} Rad8 {[%emt 0:00:41]} 27. Ne4 {[%emt 0:02:19]} Be7 {[%emt 0:00:10]} 28. Rxd8 {[%emt 0:03:07]} Rxd8 {[%emt 0:00:07]} 29. g4 {[%emt 0:00:21]} Nxc4 {[%emt 0:00:22]} 30. gxf5 {[%emt 0:00:30]} gxf5 {[%emt 0:00:30]} 31. Nxc5 {[%emt 0:00:48]} Rg8+ {[%emt 0:01:13]} 32. Kh1 {[%emt 0:00:18]} Ne5 {[%emt 0:01:11]} 33. Qf4 {[%emt 0:00:54]} Qxh3+ {[%emt 0:00:14]} 34. Qh2 {[%emt 0:00:03]} Qxh2+ {[%emt 0:00:12]} 35. Kxh2 {[%emt 0:00:05]} Ng4+ {[%emt 0:00:03]} 0-1

[Event "26th Hit Open-A 2022"]
[Site "Nova Gorica"]
[Date "2022.09.15"]
[Round "1.47"]
[White "Labrovic, Jakov"]
[Black "Guid, Taja"]
[Result "1-0"]
[ECO "B44"]
[WhiteElo "1882"]
[BlackElo "1511"]
[Annotator "NA COMBH"]
[PlyCount "73"]
[EventDate "2022.09.16"]
[EventType "swiss"]
[EventCountry "SLO"]
[SourceTitle "playchess.com"]
[Source "ChessBase"]
[SourceQuality "1"]
[TimeControl "5400+30"]

1. e4 {[%emt 0:00:11]} c5 {[%emt 0:00:15]} 2. Nf3 {[%emt 0:00:12]} e6 {[%emt 0:00:47]} 3. d4 {[%emt 0:00:13]} cxd4 {[%emt 0:00:06]} 4. Nxd4 {[%emt 0:00:08]} Nc6 {[%emt 0:00:09]} 5. Bc4 {[%emt 0:01:20]} Qc7 {[%emt 0:03:42]} 6. Nb5 {[%emt 0:02:25]} Qb8 {[%emt 0:02:52]} 7. Be3 {[%emt 0:02:39]} a6 {[%emt 0:00:56]} 8. Nd4 {[%emt 0:01:26]} Nf6 {[%emt 0:01:22]} 9. Nd2 {[%emt 0:01:45]} Be7 {[%emt 0:02:43]} 10. Qe2 {[%emt 0:04:08]} b5 {[%emt 0:12:30]} 11. Nxc6 {[%emt 0:01:58]} dxc6 {[%emt 0:00:09]} 12. Bd3 {[%emt 0:00:33]} O-O {[%emt 0:05:39]} 13. Nb3 {[%emt 0:00:35]} Nd7 {[%emt 0:05:40]} 14. c3 {[%emt 0:03:00]} c5 {[%emt 0:05:43]} 15. Bc2 {[%emt 0:00:16]} Qc7 {[%emt 0:02:13]} 16. f4 {[%emt 0:03:10]} Bb7 {[%emt 0:06:06]} 17. h4 {[%emt 0:03:40]} e5 {[%emt 0:07:46]} 18. f5 {[%emt 0:02:51]} c4 {[%emt 0:01:20]} 19. Nd2 {[%emt 0:00:19]} Bc5 {[%emt 0:05:30]} 20. g4 {[%emt 0:04:49]} Bxe3 {[%emt 0:01:14]} 21. Qxe3 {[%emt 0:00:20]} Qc5 {[%emt 0:00:27]} 22. Qxc5 {[%emt 0:05:45]} Nxc5 {[%emt 0:00:02]} 23. Ke2 {[%emt 0:05:15]} Rad8 {[%emt 0:02:36]} 24. b4 {[%emt 0:04:12]} Nd3 {[%emt 0:08:40]} 25. Ke3 {[%emt 0:01:31]} Rd7 {[%emt 0:06:16]} 26. Rh2 {[%emt 0:01:14]} Rfd8 {[%emt 0:00:53]} 27. g5 {[%emt 0:00:37]} Kf8 {[%emt 0:03:14]} 28. h5 {[%emt 0:01:51]} Ke7 {[%emt 0:03:54]} 29. Nf3 {[%emt 0:02:55]} f6 {[%emt 0:02:21]} 30. h6 {[%emt 0:12:02]} Kf7 {[%emt 0:06:55]} 31. hxg7 {[%emt 0:00:30]} Kxg7 {[%emt 0:00:10]} 32. Rah1 {[%emt 0:00:42]} Rh8 {[%emt 0:00:38]} 33. Rh6 {[%emt 0:07:49]} fxg5 {[%emt 0:01:47]} 34. Nxg5 {[%emt 0:01:23]} Kg8 {[%emt 0:00:16]} 35. Ne6 {[%emt 0:07:07]} Nb2 {[%emt 0:01:30]} 36. Rf6 {[%emt 0:01:01]} Rg7 {[%emt 0:01:18]} 37. Rf8# {[%emt 0:00:14]} 1-0

[Event "26th Hit Open-A 2022"]
[Site "Nova Gorica"]
[Date "2022.09.17"]
[Round "2.1"]
[White "Royal, Shreyas"]
[Black "Thybo, Jesper Sondergaard"]
[Result "1-0"]
[ECO "E61"]
[WhiteElo "2412"]
[BlackElo "2516"]
[Annotator "ChessBase"]
[PlyCount "89"]
[EventDate "2022.09.16"]
[EventType "swiss"]
[EventCountry "SLO"]
[SourceTitle "playchess.com"]
[Source "ChessBase"]
[SourceQuality "1"]
[TimeControl "5400+30"]

1. d4 {[%emt 0:00:03]} Nf6 {[%emt 0:04:59]} 2. c4 {[%emt 0:00:07]} g6 {[%emt 0:00:18]} 3. Nf3 {[%emt 0:00:08]} Bg7 {[%emt 0:00:13]} 4. e3 {[%emt 0:00:05]} O-O {[%emt 0:00:27]} 5. Be2 {[%emt 0:00:05]} d6 {[%emt 0:00:12]} 6. Nc3 {[%emt 0:00:09]} Bf5 {[%emt 0:00:23]} 7. Nd2 {[%emt 0:00:15]} e5 {[%emt 0:04:50]} 8. d5 {[%emt 0:00:08]} a5 {[%emt 0:00:42]} 9. e4 {[%emt 0:11:12]} Bd7 {[%emt 0:01:48]} 10. Nf1 {[%emt 0:00:11]} Na6 {[%emt 0:04:10]} 11. g4 {[%emt 0:06:28]} c6 {[%emt 0:03:16]} 12. Ng3 {[%emt 0:06:53]} cxd5 {[%emt 0:03:14]} 13. exd5 {[%emt 0:00:09]} Nc5 {[%emt 0:04:17]} 14. Be3 {[%emt 0:04:25]} a4 {[%emt 0:11:21]} 15. Rc1 {[%emt 0:07:55]} Qa5 {[%emt 0:02:06]} 16. O-O {[%emt 0:02:28]} Ne8 {[%emt 0:10:13]} 17. Qd2 {[%emt 0:07:20]} f5 {[%emt 0:12:55]} 18. gxf5 {[%emt 0:00:13]} Bxf5 {[%emt 0:00:33]} 19. Nxf5 {[%emt 0:06:57]} gxf5 {[%emt 0:00:20]} 20. f4 {[%emt 0:00:15]} e4 {[%emt 0:01:28]} 21. Kh1 {[%emt 0:00:55]} Kh8 {[%emt 0:08:08]} 22. Rg1 {[%emt 0:00:41]} Bf6 {[%emt 0:01:02]} 23. Bd4 {[%emt 0:04:53]} Qd8 {[%emt 0:04:08]} 24. Nb5 {[%emt 0:07:28]} Bxd4 {[%emt 0:01:47]} 25. Nxd4 {[%emt 0:00:06]} Qf6 {[%emt 0:02:11]} 26. Rg5 {[%emt 0:00:10]} Ng7 {[%emt 0:00:24]} 27. Rcg1 {[%emt 0:00:11]} Rf7 {[%emt 0:00:44]} 28. Qe3 {[%emt 0:00:22]} Raf8 {[%emt 0:05:17]} 29. b4 {[%emt 0:02:03]} axb3 {[%emt 0:00:22]} 30. axb3 {[%emt 0:00:04]} Ra8 {[%emt 0:01:26]} 31. b4 {[%emt 0:06:26]} Nd7 {[%emt 0:00:05]} 32. Bf1 {[%emt 0:00:50]} Ra1 {[%emt 0:07:23]} 33. Ne6 {[%emt 0:01:46]} Rxf1 {[%emt 0:01:08]} 34. Rxf1 {[%emt 0:00:04]} Nxe6 {[%emt 0:00:05]} 35. dxe6 {[%emt 0:00:03]} Qxe6 {[%emt 0:00:05]} 36. Rfg1 {[%emt 0:02:09]} Nf6 {[%emt 0:00:54]} 37. c5 {[%emt 0:02:42]} d5 {[%emt 0:01:09]} 38. Qg3 {[%emt 0:02:02]} Rd7 {[%emt 0:02:20]} 39. Rg7 {[%emt 0:00:18]} d4 {[%emt 0:01:13]} 40. Qg5 {[%emt 0:00:30]} Ng4 {[%emt 0:01:47]} 41. Rxd7 {[%emt 0:00:18]} Qxd7 {[%emt 0:00:03]} 42. h3 {[%emt 0:00:06]} h6 {[%emt 0:01:32]} 43. Qg6 {[%emt 0:00:07]} e3 {[%emt 0:00:28]} 44. hxg4 {[%emt 0:00:04]} e2 {[%emt 0:00:27]} 45. Qxh6+ {[%emt 0:01:07]} 1-0

[Event "26th Hit Open-A 2022"]
[Site "Nova Gorica"]
[Date "2022.09.17"]
[Round "2.2"]
[White "Seo, Jung Min"]
[Black "Holtel, Jasper"]
[Result "1-0"]
[ECO "B92"]
[WhiteElo "2516"]
[BlackElo "2406"]
[Annotator "ChessBase"]
[PlyCount "101"]
[EventDate "2022.09.16"]
[EventType "swiss"]
[EventCountry "SLO"]
[SourceTitle "playchess.com"]
[Source "ChessBase"]
[SourceQuality "1"]
[TimeControl "5400+30"]

1. e4 {[%emt 0:02:47]} c5 {[%emt 0:00:09]} 2. Nc3 {[%emt 0:00:05]} d6 {[%emt 0:00:08]} 3. Nge2 {[%emt 0:01:44]} Nf6 {[%emt 0:00:46]} 4. d4 {[%emt 0:01:21]} cxd4 {[%emt 0:00:15]} 5. Nxd4 {[%emt 0:00:01]} a6 {[%emt 0:00:14]} 6. Be2 {[%emt 0:04:01]} e5 {[%emt 0:00:45]} 7. Nb3 {[%emt 0:00:09]} Be7 {[%emt 0:00:07]} 8. O-O {[%emt 0:01:14]} O-O {[%emt 0:00:10]} 9. a4 {[%emt 0:09:13]} Nc6 {[%emt 0:01:43]} 10. Bf3 {[%emt 0:03:06]} Nb4 {[%emt 0:11:11]} 11. Re1 {[%emt 0:05:33]} Be6 {[%emt 0:05:17]} 12. Nd5 {[%emt 0:05:25]} Nfxd5 {[%emt 0:15:28]} 13. exd5 {[%emt 0:00:05]} Bf5 {[%emt 0:00:11]} 14. Be4 {[%emt 0:00:18]} Bxe4 {[%emt 0:00:15]} 15. Rxe4 {[%emt 0:00:03]} a5 {[%emt 0:00:14]} 16. c3 {[%emt 0:02:14]} Na6 {[%emt 0:01:02]} 17. f4 {[%emt 0:08:28]} Bf6 {[%emt 0:07:20]} 18. Be3 {[%emt 0:04:38]} Re8 {[%emt 0:14:08]} 19. Qd3 {[%emt 0:12:20]} exf4 {[%emt 0:14:04]} 20. Rxe8+ {[%emt 0:00:08]} Qxe8 {[%emt 0:00:04]} 21. Bxf4 {[%emt 0:00:07]} Be5 {[%emt 0:01:21]} 22. Be3 {[%emt 0:04:01]} Qd8 {[%emt 0:02:50]} 23. Bf2 {[%emt 0:00:44]} b6 {[%emt 0:01:56]} 24. Nd2 {[%emt 0:02:27]} Nc5 {[%emt 0:02:15]} 25. Qb5 {[%emt 0:02:03]} Rb8 {[%emt 0:12:13]} 26. Nc4 {[%emt 0:02:08]} Nd3 {[%emt 0:02:22]} 27. Bxb6 {[%emt 0:03:26]} Qh4 {[%emt 0:01:36]} 28. Nxe5 {[%emt 0:00:13]} Nxe5 {[%emt 0:00:08]} 29. Qxa5 {[%emt 0:02:54]} h5 {[%emt 0:03:20]} 30. Qa7 {[%emt 0:00:46]} Re8 {[%emt 0:00:17]} 31. Bf2 {[%emt 0:00:20]} Qc4 {[%emt 0:01:40]} 32. Qe3 {[%emt 0:06:25]} Qb3 {[%emt 0:01:57]} 33. Qe2 {[%emt 0:00:21]} Qxd5 {[%emt 0:00:51]} 34. a5 {[%emt 0:00:49]} Qa8 {[%emt 0:00:40]} 35. a6 {[%emt 0:01:11]} Ng4 {[%emt 0:00:07]} 36. Qd2 {[%emt 0:01:41]} d5 {[%emt 0:00:47]} 37. h3 {[%emt 0:01:54]} Nf6 {[%emt 0:00:06]} 38. a7 {[%emt 0:00:28]} Qb7 {[%emt 0:00:16]} 39. b4 {[%emt 0:00:22]} Ne4 {[%emt 0:00:22]} 40. Qd4 {[%emt 0:00:08]} Ra8 {[%emt 0:00:37]} 41. Ra3 {[%emt 0:01:10]} Kh7 {[%emt 0:01:16]} 42. Ra5 {[%emt 0:00:19]} Nf6 {[%emt 0:00:30]} 43. Qb6 {[%emt 0:00:42]} Qc8 {[%emt 0:00:17]} 44. Bd4 {[%emt 0:00:42]} Qf5 {[%emt 0:00:40]} 45. Bxf6 {[%emt 0:00:46]} gxf6 {[%emt 0:00:24]} 46. Qf2 {[%emt 0:00:17]} Qe5 {[%emt 0:00:24]} 47. Qd4 {[%emt 0:00:29]} Qe1+ {[%emt 0:00:20]} 48. Kh2 {[%emt 0:00:03]} h4 {[%emt 0:00:20]} 49. Qxf6 {[%emt 0:02:10]} Rg8 {[%emt 0:01:05]} 50. Qxf7+ {[%emt 0:00:33]} Kh6 {[%emt 0:00:20]} 51. Ra6+ {[%emt 0:00:13]} 1-0

[Event "26th Hit Open-A 2022"]
[Site "Nova Gorica"]
[Date "2022.09.17"]
[Round "2.3"]
[White "Willow, Jonah B"]
[Black "Diermair, Andreas"]
[Result "1-0"]
[ECO "C49"]
[WhiteElo "2385"]
[BlackElo "2468"]
[Annotator "ChessBase"]
[PlyCount "127"]
[EventDate "2022.09.16"]
[EventType "swiss"]
[EventCountry "SLO"]
[SourceTitle "playchess.com"]
[Source "ChessBase"]
[SourceQuality "1"]
[TimeControl "5400+30"]

1. e4 {[%emt 0:01:03]} e5 {[%emt 0:00:11]} 2. Nf3 {[%emt 0:00:29]} Nc6 {[%emt 0:00:05]} 3. Nc3 {[%emt 0:00:41]} Nf6 {[%emt 0:00:04]} 4. Bb5 {[%emt 0:00:22]} Bb4 {[%emt 0:00:21]} 5. O-O {[%emt 0:00:24]} O-O {[%emt 0:00:41]} 6. d3 {[%emt 0:00:37]} Bxc3 {[%emt 0:01:13]} 7. bxc3 {[%emt 0:00:04]} d6 {[%emt 0:00:07]} 8. Bg5 {[%emt 0:00:13]} Qe7 {[%emt 0:01:07]} 9. Re1 {[%emt 0:00:24]} a6 {[%emt 0:01:20]} 10. Ba4 {[%emt 0:00:57]} Nd8 {[%emt 0:02:40]} 11. d4 {[%emt 0:04:10]} Ne6 {[%emt 0:05:29]} 12. Bd2 {[%emt 0:02:43]} c5 {[%emt 0:05:02]} 13. Bb3 {[%emt 0:01:09]} Nc7 {[%emt 0:06:11]} 14. Bg5 {[%emt 0:08:14]} Rd8 {[%emt 0:11:50]} 15. a4 {[%emt 0:07:10]} Ne6 {[%emt 0:05:05]} 16. Bxe6 {[%emt 0:03:32]} Bxe6 {[%emt 0:00:46]} 17. d5 {[%emt 0:00:22]} Bd7 {[%emt 0:00:33]} 18. a5 {[%emt 0:01:08]} h6 {[%emt 0:01:30]} 19. Bxf6 {[%emt 0:04:49]} Qxf6 {[%emt 0:00:05]} 20. Nd2 {[%emt 0:06:16]} Rac8 {[%emt 0:01:41]} 21. c4 {[%emt 0:05:13]} Rc7 {[%emt 0:02:47]} 22. Rb1 {[%emt 0:01:12]} Bc8 {[%emt 0:00:25]} 23. Re3 {[%emt 0:01:56]} Qh4 {[%emt 0:04:24]} 24. Rb6 {[%emt 0:06:26]} f5 {[%emt 0:01:10]} 25. Nf3 {[%emt 0:08:24]} Qh5 {[%emt 0:01:21]} 26. exf5 {[%emt 0:01:05]} Bxf5 {[%emt 0:02:47]} 27. Qb1 {[%emt 0:00:26]} Qg4 {[%emt 0:06:29]} 28. Qb3 {[%emt 0:03:28]} Bc8 {[%emt 0:05:32]} 29. h3 {[%emt 0:01:00]} Qh5 {[%emt 0:00:19]} 30. Qb1 {[%emt 0:03:24]} Rf7 {[%emt 0:01:39]} 31. Nd2 {[%emt 0:00:18]} Rf4 {[%emt 0:01:17]} 32. Ne4 {[%emt 0:01:41]} Qg6 {[%emt 0:00:52]} 33. Nxc5 {[%emt 0:00:50]} Rxc4 {[%emt 0:06:10]} 34. Nxb7 {[%emt 0:11:06]} Rd7 {[%emt 0:00:52]} 35. Rg3 {[%emt 0:04:58]} Qf6 {[%emt 0:00:59]} 36. Qb3 {[%emt 0:10:41]} Rd4 {[%emt 0:09:25]} 37. Rf3 {[%emt 0:01:24]} Qe7 {[%emt 0:02:13]} 38. Nc5 {[%emt 0:00:09]} e4 {[%emt 0:01:02]} 39. Rf5 {[%emt 0:00:59]} Rd8 {[%emt 0:05:31]} 40. Ne6 {[%emt 0:00:16]} Rd1+ {[%emt 0:00:18]} 41. Kh2 {[%emt 0:00:01]} Re8 {[%emt 0:00:40]} 42. Rb8 {[%emt 0:01:04]} Kh7 {[%emt 0:02:14]} 43. Rf4 {[%emt 0:00:39]} Bxe6 {[%emt 0:03:17]} 44. Rxe8 {[%emt 0:00:02]} Qg5 {[%emt 0:01:06]} 45. Qg3 {[%emt 0:00:38]} Bxd5 {[%emt 0:00:41]} 46. Qxg5 {[%emt 0:00:49]} hxg5 {[%emt 0:00:01]} 47. Rf5 {[%emt 0:00:24]} Kg6 {[%emt 0:00:10]} 48. Rff8 {[%emt 0:00:29]} Rd2 {[%emt 0:00:42]} 49. c4 {[%emt 0:00:38]} Bxc4 {[%emt 0:01:20]} 50. Rxe4 {[%emt 0:00:01]} Bd5 {[%emt 0:00:17]} 51. Re7 {[%emt 0:00:23]} Bc4 {[%emt 0:00:34]} 52. Kg3 {[%emt 0:00:58]} Rd3+ {[%emt 0:00:21]} 53. Rf3 {[%emt 0:00:34]} Rd1 {[%emt 0:00:39]} 54. Rd7 {[%emt 0:00:16]} Bb5 {[%emt 0:00:22]} 55. Rc7 {[%emt 0:00:18]} d5 {[%emt 0:00:50]} 56. Rff7 {[%emt 0:00:05]} d4 {[%emt 0:00:05]} 57. Rxg7+ {[%emt 0:00:04]} Kf6 {[%emt 0:00:05]} 58. Rcf7+ {[%emt 0:00:35]} Ke6 {[%emt 0:00:10]} 59. Rf8 {[%emt 0:00:09]} d3 {[%emt 0:00:28]} 60. Rxg5 {[%emt 0:00:51]} d2 {[%emt 0:02:01]} 61. Rd8 {[%emt 0:00:03]} Bd7 {[%emt 0:00:41]} 62. Rg7 {[%emt 0:00:19]} Bc6 {[%emt 0:00:27]} 63. Rg6+ {[%emt 0:00:27]} Ke7 {[%emt 0:00:06]} 64. Rgd6 {[%emt 0:00:06]} 1-0

[Event "26th Hit Open-A 2022"]
[Site "Nova Gorica"]
[Date "2022.09.17"]
[Round "2.4"]
[White "Pavlovic, Milos"]
[Black "Tisaj, Domen"]
[Result "1/2-1/2"]
[ECO "E05"]
[WhiteElo "2468"]
[BlackElo "2325"]
[Annotator "ChessBase"]
[PlyCount "85"]
[EventDate "2022.09.16"]
[EventType "swiss"]
[EventCountry "SLO"]
[SourceTitle "playchess.com"]
[Source "ChessBase"]
[SourceQuality "1"]
[TimeControl "5400+30"]

1. d4 {[%emt 0:00:02]} Nf6 {[%emt 0:00:30]} 2. Nf3 {[%emt 0:00:09]} e6 {[%emt 0:00:37]} 3. g3 {[%emt 0:01:18]} d5 {[%emt 0:01:05]} 4. Bg2 {[%emt 0:00:05]} Be7 {[%emt 0:00:20]} 5. O-O {[%emt 0:00:13]} O-O {[%emt 0:00:45]} 6. c4 {[%emt 0:00:17]} dxc4 {[%emt 0:00:08]} 7. Qc2 {[%emt 0:01:25]} a6 {[%emt 0:00:11]} 8. a4 {[%emt 0:00:56]} Bd7 {[%emt 0:00:07]} 9. Qxc4 {[%emt 0:06:06]} Bc6 {[%emt 0:00:20]} 10. Bg5 {[%emt 0:00:27]} Bd5 {[%emt 0:00:09]} 11. Qc2 {[%emt 0:29:47]} Be4 {[%emt 0:00:56]} 12. Qd1 {[%emt 0:01:29]} c5 {[%emt 0:04:53]} 13. dxc5 {[%emt 0:01:14]} Bxc5 {[%emt 0:01:56]} 14. Nbd2 {[%emt 0:03:02]} Bc6 {[%emt 0:01:20]} 15. Nb3 {[%emt 0:21:33]} Bb4 {[%emt 0:09:51]} 16. Ne5 {[%emt 0:11:28]} Bxg2 {[%emt 0:01:14]} 17. Qxd8 {[%emt 0:01:39]} Rxd8 {[%emt 0:00:08]} 18. Kxg2 {[%emt 0:00:05]} Nbd7 {[%emt 0:07:14]} 19. Nxd7 {[%emt 0:01:42]} Rxd7 {[%emt 0:00:11]} 20. Rfd1 {[%emt 0:07:42]} Rad8 {[%emt 0:01:34]} 21. Rxd7 {[%emt 0:00:07]} Rxd7 {[%emt 0:00:05]} 22. Rc1 {[%emt 0:00:17]} h6 {[%emt 0:03:18]} 23. Rc8+ {[%emt 0:04:47]} Kh7 {[%emt 0:00:08]} 24. Bxf6 {[%emt 0:00:37]} gxf6 {[%emt 0:00:09]} 25. Nc1 {[%emt 0:00:11]} Kg7 {[%emt 0:02:09]} 26. Nd3 {[%emt 0:00:07]} Bd6 {[%emt 0:00:12]} 27. f4 {[%emt 0:02:29]} Bf8 {[%emt 0:09:39]} 28. Kf3 {[%emt 0:00:21]} Rd5 {[%emt 0:08:28]} 29. Rb8 {[%emt 0:00:59]} Rd7 {[%emt 0:06:17]} 30. g4 {[%emt 0:00:11]} Bd6 {[%emt 0:07:13]} 31. Rc8 {[%emt 0:00:12]} Kg6 {[%emt 0:03:28]} 32. h3 {[%emt 0:00:24]} Kg7 {[%emt 0:07:27]} 33. Nf2 {[%emt 0:00:53]} h5 {[%emt 0:07:47]} 34. Ne4 {[%emt 0:04:13]} hxg4+ {[%emt 0:00:58]} 35. hxg4 {[%emt 0:00:03]} Be7 {[%emt 0:02:19]} 36. b3 {[%emt 0:01:00]} Kg6 {[%emt 0:01:33]} 37. Ng3 {[%emt 0:00:41]} f5 {[%emt 0:03:53]} 38. gxf5+ {[%emt 0:00:34]} exf5 {[%emt 0:00:01]} 39. Rg8+ {[%emt 0:00:20]} Kh7 {[%emt 0:00:24]} 40. Re8 {[%emt 0:00:35]} Kg6 {[%emt 0:00:01]} 41. Rg8+ {[%emt 0:00:46]} Kh7 {[%emt 0:00:02]} 42. Rc8 {[%emt 0:00:30]} Kg6 {[%emt 0:00:06]} 43. Rg8+ {[%emt 0:00:30]} 1/2-1/2

[Event "26th Hit Open-A 2022"]
[Site "Nova Gorica"]
[Date "2022.09.17"]
[Round "2.5"]
[White "Drazic, Sinisa"]
[Black "Stefansson, Vignir Vatnar"]
[Result "0-1"]
[ECO "B50"]
[WhiteElo "2327"]
[BlackElo "2452"]
[Annotator "ChessBase"]
[PlyCount "90"]
[EventDate "2022.09.16"]
[EventType "swiss"]
[EventCountry "SLO"]
[SourceTitle "playchess.com"]
[Source "ChessBase"]
[SourceQuality "1"]
[TimeControl "5400+30"]

1. e4 {[%emt 0:05:13]} c5 {[%emt 0:00:37]} 2. Nf3 {[%emt 0:00:14]} d6 {[%emt 0:00:48]} 3. c3 {[%emt 0:00:40]} Nf6 {[%emt 0:02:38]} 4. Bd3 {[%emt 0:00:33]} Nc6 {[%emt 0:01:10]} 5. Bc2 {[%emt 0:00:03]} Bg4 {[%emt 0:02:09]} 6. d3 {[%emt 0:00:07]} e6 {[%emt 0:00:36]} 7. Nbd2 {[%emt 0:00:05]} Be7 {[%emt 0:03:48]} 8. h3 {[%emt 0:01:40]} Bh5 {[%emt 0:00:21]} 9. g4 {[%emt 0:06:18]} Bg6 {[%emt 0:00:25]} 10. h4 {[%emt 0:00:05]} h5 {[%emt 0:11:09]} 11. g5 {[%emt 0:00:03]} Nd7 {[%emt 0:02:21]} 12. Nf1 {[%emt 0:00:21]} d5 {[%emt 0:01:14]} 13. Bf4 {[%emt 0:04:07]} Qb6 {[%emt 0:02:22]} 14. exd5 {[%emt 0:01:21]} exd5 {[%emt 0:04:19]} 15. Ne3 {[%emt 0:04:31]} Qxb2 {[%emt 0:00:05]} 16. Nxd5 {[%emt 0:00:44]} O-O {[%emt 0:00:39]} 17. Rb1 {[%emt 0:08:50]} Qa3 {[%emt 0:04:18]} 18. Rxb7 {[%emt 0:00:53]} Rad8 {[%emt 0:11:16]} 19. O-O {[%emt 0:12:52]} Qa6 {[%emt 0:07:43]} 20. Rc7 {[%emt 0:05:02]} Nb6 {[%emt 0:01:34]} 21. Nxe7+ {[%emt 0:00:39]} Nxe7 {[%emt 0:00:06]} 22. Rxc5 {[%emt 0:03:18]} Bxd3 {[%emt 0:05:35]} 23. Re1 {[%emt 0:07:53]} Ng6 {[%emt 0:04:44]} 24. Bc7 {[%emt 0:03:53]} Bxc2 {[%emt 0:04:37]} 25. Qxc2 {[%emt 0:00:37]} Rd7 {[%emt 0:00:04]} 26. Qf5 {[%emt 0:07:13]} Qxa2 {[%emt 0:03:44]} 27. Ra5 {[%emt 0:05:03]} Qc4 {[%emt 0:01:16]} 28. Rxa7 {[%emt 0:02:36]} Rxc7 {[%emt 0:00:53]} 29. Rxc7 {[%emt 0:03:45]} Qxc7 {[%emt 0:00:06]} 30. Re3 {[%emt 0:00:11]} Rd8 {[%emt 0:00:20]} 31. Nd4 {[%emt 0:00:28]} Nd5 {[%emt 0:00:57]} 32. Rd3 {[%emt 0:00:50]} Qf4 {[%emt 0:02:34]} 33. Rf3 {[%emt 0:00:50]} Qxf5 {[%emt 0:01:31]} 34. Nxf5 {[%emt 0:00:02]} Ne5 {[%emt 0:01:41]} 35. Rg3 {[%emt 0:00:39]} g6 {[%emt 0:00:12]} 36. Nh6+ {[%emt 0:00:29]} Kg7 {[%emt 0:00:06]} 37. Kh2 {[%emt 0:00:11]} Rc8 {[%emt 0:00:16]} 38. f4 {[%emt 0:00:17]} Nxf4 {[%emt 0:00:19]} 39. Re3 {[%emt 0:00:05]} Nfd3 {[%emt 0:00:25]} 40. Re2 {[%emt 0:00:37]} Rxc3 {[%emt 0:00:09]} 41. Ra2 {[%emt 0:00:11]} Nf4 {[%emt 0:00:20]} 42. Ra4 {[%emt 0:00:16]} Rh3+ {[%emt 0:00:36]} 43. Kg1 {[%emt 0:00:04]} Rxh4 {[%emt 0:00:09]} 44. Ra8 {[%emt 0:00:06]} Nh3+ {[%emt 0:00:19]} 45. Kg2 {[%emt 0:00:05]} Nxg5 {[%emt 0:00:05]} 0-1